fUST/lending_fUST_20240120
["ID","MTS","AMOUNT","RATE_DAILY","PERIOD"]
[312298359,1705762238945,-1435.07391285,0.00031167,2]
[312298360,1705762238955,-246.75369564,0.00031167,2]
[312298361,1705762238965,-461.381323,0.00031167,2]
[312298362,1705762238974,-629.3776507,0.00031167,2]
[312298363,1705762238984,-189.98376832,0.00031167,2]
[312298364,1705762238994,-200.0,0.00031208,15]
[312298365,1705762239003,-348.0,0.00031208,15]
[312298366,1705762239013,-161.667687,0.00031233,2]
[312298367,1705762239022,-200.51,0.000317,4]
[312298368,1705762239031,-150.5,0.0003177,30]
[312298369,1705762239041,-150.5,0.0003177,30]
[312298370,1705762239050,-150.5,0.0003178,30]
[312298371,1705762239059,-150.5,0.0003178,30]
[312298372,1705762239069,-150.5,0.0003179,30]
[312298373,1705762239078,-150.5,0.0003179,30]
[312298374,1705762239088,-643.9449239,0.00031798,4]
[312298375,1705762239097,-1844.52539602,0.00031798,4]
[312298376,1705762239107,-156.56034673,0.00031798,4]
[312298377,1705762239116,-183.27952613,0.00031798,4]
[312298378,1705762239129,-118.84197856,0.00031798,4]
[312298379,1705762239138,-155.3990448,0.00031798,2]
[312298380,1705762239148,-158.00349204,0.00031798,4]
[312298381,1705762239158,-200.83649034,0.00031798,4]
[312298382,1705762239167,-157.79702306,0.00031798,4]
[312298383,1705762239177,-155.26150562,0.00031798,2]
[312298384,1705762239186,-265.2811879,0.00031799,4]
[312298385,1705762239196,-166.55500108,0.00031799,4]
[312298386,1705762239205,-411.80778103,0.00031799,2]
[312298387,1705762239214,-500.0,0.00031799,2]
[312298388,1705762239224,-500.0,0.00031799,2]
[312298389,1705762239233,-500.0,0.00031799,2]
[312298390,1705762239242,-500.0,0.00031799,2]
[312298391,1705762239397,-500.0,0.00031799,2]
[312298392,1705762239406,-576.42618235,0.00031799,2]
[312298393,1705762239416,-500.0,0.00031799,2]
[312298394,1705762239426,-500.0,0.00031799,2]
[312298395,1705762239436,-500.0,0.00031799,2]
[312298396,1705762239445,-500.0,0.00031799,2]
[312298397,1705762239454,-500.0,0.00031799,2]
[312298398,1705762239463,-430.95180385,0.00031799,2]
[312298399,1705762239472,-393.39579856,0.00031799,2]
[312298400,1705762239480,-500.0,0.00031799,2]
[312298401,1705762239489,-609.4593534,0.00031799,2]
[312298402,1705762239498,-500.0,0.00031799,2]
[312298403,1705762239507,-402.83288029,0.00031799,2]
[312298404,1705762239519,-97.16711971,0.00031799,2]
[312298405,1705762239529,-500.0,0.00031799,2]
[312298406,1705762239538,-500.0,0.00031799,2]
[312298407,1705762239547,-500.0,0.00031799,2]
[312298408,1705762239556,-500.0,0.00031799,2]
[312298409,1705762239565,-500.0,0.00031799,2]
[312298410,1705762239574,-500.0,0.00031799,2]
[312298411,1705762239585,-500.0,0.00031799,2]
[312298412,1705762239594,-500.0,0.00031799,2]
[312298413,1705762239603,-500.0,0.00031799,2]
[312298414,1705762239612,-500.0,0.00031799,2]
[312298415,1705762239621,-417.50597474,0.00031799,2]
[312298416,1705762239630,-500.0,0.00031799,2]
[312298417,1705762239639,-332.11788844,0.00031799,2]
[312298418,1705762239648,-500.0,0.00031799,2]
[312298419,1705762239658,-500.0,0.00031799,2]
[312298420,1705762239666,-499.99999999,0.00031799,2]
[312298421,1705762239675,-500.0,0.00031799,2]
[312298422,1705762239684,-500.0,0.00031799,2]
[312298423,1705762239693,-500.0,0.00031799,2]
[312298424,1705762239702,-226.43002385,0.00031799,2]
[312298425,1705762239711,-153.05766386,0.00031799,2]
[312298426,1705762239720,-276000.0,0.000318,2]
[312298427,1705762239729,-4036.97934018,0.00031899,2]
[312298428,1705762239738,-12423.32320464,0.00031987,2]
[312298429,1705762239747,-203.86620558,0.00031998,2]
[312298430,1705762239757,-405.86524898,0.00031998,4]
[312298431,1705762239766,-500.0,0.00031998,4]
[312298432,1705762239775,-394.97829414,0.00031998,4]
[312298433,1705762239785,-547.75148392,0.00031998,4]
[312298434,1705762239795,-587.72145092,0.00031998,4]
[312298435,1705762239804,-500.0,0.00031998,4]
[312298436,1705762239813,-500.0,0.00031998,4]
[312298437,1705762239822,-500.0,0.00031998,4]
[312298438,1705762239834,-36939.26517678,0.00031999,4]
[312298439,1705762239843,-7157.99850704,0.00032,4]
[312298440,1705762239852,-12249.29617136,0.00032,5]
[312298441,1705762239861,-980.8946807,0.00032,4]
[312298442,1705762239870,-154.73694719,0.00032,4]
[312298443,1705762239879,-763.70587335,0.00032,2]
[312298444,1705762239888,-342.87850745,0.00032,4]
[312298445,1705762239898,-10293.9434922,0.00032,4]
[312298446,1705762239908,-283.12887752,0.00032,3]
[312298447,1705762239917,-151970.62713994,0.00032,14]
[312298448,1705762239926,-1094.47895322,0.000325,20]
[312298449,1705762239935,-50000.0,0.00032767,7]
[312298450,1705762239944,-250.0,0.00032876,7]
[312298451,1705762239953,-500.0,0.00032876,7]
[312298452,1705762239962,-188.12948106,0.00032876,7]
[312298453,1705762239972,-500.0,0.00032876,7]
[312298454,1705762239981,-500.0,0.00032876,7]
[312298455,1705762239990,-545.04684892,0.00032876,7]
[312298456,1705762239999,-500.0,0.00032876,7]
[312298457,1705762240009,-500.0,0.00032876,7]
[312298458,1705762240018,-500.0,0.00032876,7]
[312298459,1705762240028,-500.0,0.00032876,7]
[312298460,1705762240037,-500.0,0.00032876,7]
[312298461,1705762240046,-500.0,0.00032876,7]
[312298462,1705762240055,-307.31963676,0.00032876,7]
[312298463,1705762240064,-500.0,0.00032876,7]
[312298464,1705762240074,-500.0,0.00032876,7]
[312298465,1705762240083,-448.21385289,0.00032876,7]
[312298466,1705762240093,-500.0,0.00032876,7]
[312298467,1705762240103,-500.0,0.00032876,7]
[312298468,1705762240113,-500.0,0.00032876,7]
[312298469,1705762240122,-500.0,0.00032876,7]
[312298470,1705762240131,-457.09451505,0.00032876,7]
[312298471,1705762240141,-500.0,0.00032876,7]
[312298472,1705762240150,-500.0,0.00032876,7]
[312298473,1705762240161,-500.0,0.00032876,7]
[312298474,1705762240170,-374.08841633,0.00032876,7]
[312298475,1705762240179,-500.0,0.00032876,7]
[312298476,1705762240189,-294.82251789,0.00032876,7]
[312298477,1705762240198,-500.0,0.00032876,7]
[312298478,1705762240208,-500.0,0.00032876,7]
[312298479,1705762240217,-159.517034,0.00032877,2]
[312298480,1705762240226,-15458.94796053,0.00032998,4]
[312298481,1705762240236,-260.95401004,0.00032998,4]
[312298482,1705762240245,-587.69337227,0.00032998,4]
[312298483,1705762240254,-345.29571752,0.00032998,2]
[312298484,1705762240263,-253.93572922,0.00032998,4]
[312298485,1705762240272,-162.61777834,0.00032998,4]
[312298486,1705762240282,-604.51557286,0.00032998,4]
[312298487,1705762240291,-1578.25252974,0.00032998,4]
[312298488,1705762240300,-15903.84683037,0.00032998,4]
[312298489,1705762240309,-164.53558271,0.00032998,4]
[312298490,1705762240318,-6930.8919264,0.00032998,4]
[312298491,1705762240327,-9723.50291957,0.00032998,2]
[312298492,1705762240337,-175.10808693,0.00032999,4]
[312298493,1705762240346,-2033.10997564,0.00032999,4]
[312298494,1705762240358,-2746.17143559,0.00032999,3]
[312298495,1705762240367,-1424.32228167,0.00032999,120]
[312298496,1705762240377,-615.91,0.00032999,2]
[312298497,1705762240386,-615.9,0.00032999,2]
[312298498,1705762240395,-615.9,0.00032999,2]
[312298499,1705762240404,-615.9,0.00032999,2]
[312298500,1705762240414,-615.9,0.00032999,2]
[312298501,1705762240424,-615.9,0.00032999,2]
[312298502,1705762240434,-615.9,0.00032999,2]
[312298503,1705762240445,-615.9,0.00032999,2]
[312298504,1705762240455,-615.9,0.00032999,2]
[312298505,1705762240464,-6763.78500734,0.00033,4]
[312298506,1705762240473,-154.73694719,0.00033,4]
[312298507,1705762240482,-141825.0,0.00033,2]
[312298508,1705762240491,-500.0,0.00033,30]
[312298509,1705762240500,-680.135257,0.00033,7]
[312298510,1705762240509,-156.0,0.00033,2]
[312298511,1705762240518,-1765.96726807,0.00033389,4]
[312298512,1705762240527,-1273.92331985,0.0003339,2]
[312298513,1705762240536,-678.35754423,0.00033398,4]
[312298514,1705762240544,-200.0,0.00033398,4]
[312298515,1705762240553,-902.97118459,0.00033398,4]
[312298516,1705762240563,-3125.40645245,0.00033398,4]
[312298517,1705762240572,-1990.72583071,0.00033398,4]
[312298518,1705762240582,-678.60233026,0.00033398,4]
[312298519,1705762240591,-301.45322004,0.00033399,4]
[312298520,1705762240601,-4463.10901165,0.000334,4]
[312298521,1705762240610,-1200.0,0.000334,4]
[312298522,1705762240619,-1532.87710371,0.000334,7]
[312298523,1705762240628,-1500.0,0.000336,2]
[312298524,1705762240637,-161.667687,0.00033699,2]
[312298525,1705762240646,-1000.0,0.00034,34]
[312298526,1705762240655,-171.79662836,0.00034,7]
[312298527,1705762240665,-10990.39266955,0.00034,2]
[312298528,1705762240674,-488.555846,0.00034,30]
[312298529,1705762240683,-620.00024863,0.00034144,2]
[312298530,1705762240692,-151.0,0.00034183,2]
[312298531,1705762240701,-5000.0,0.00034244,2]
[312298532,1705762240710,-500.0,0.00034246,7]
[312298533,1705762240719,-200.0,0.00034329,15]
[312298534,1705762240728,-200.0,0.00034329,15]
[312298535,1705762240737,-368.0,0.00034329,15]
[312298536,1705762240747,-156.0,0.00034521,2]
[312298537,1705762240756,-1500.0,0.000346,2]
[312298538,1705762240765,-5109.25546901,0.0003468,2]
[312298539,1705762240774,-500.0,0.0003468,4]
[312298540,1705762240784,-500.0,0.0003468,4]
[312298541,1705762240793,-500.0,0.0003468,4]
[312298542,1705762240802,-500.0,0.0003468,4]
[312298543,1705762240811,-500.0,0.0003468,4]
[312298544,1705762240821,-615.91,0.00034905,2]
[312298545,1705762240831,-50000.0,0.00034906,7]
[312298546,1705762240840,-411.75268187,0.00034998,4]
[312298547,1705762240850,-1579.57276969,0.00034998,4]
[312298548,1705762240859,-228.84935503,0.00034998,4]
[312298549,1705762240869,-368.18356328,0.00034998,4]
[312298550,1705762240878,-583.04756545,0.00034998,4]
[312298551,1705762240887,-7146.21757855,0.00034999,4]
[312298552,1705762240896,-416.06469454,0.00035,4]
[312298553,1705762240906,-425.21360235,0.00035,2]
[312298554,1705762240915,-3119.96924767,0.00035,20]
[312298555,1705762240924,-156.22054158,0.00035,4]
[312298556,1705762240933,-333.12649891,0.00035,4]
[312298557,1705762240942,-155.63577481,0.00035,6]
[312298558,1705762240951,-1000.0,0.00035,35]
[312298559,1705762240961,-517.49938236,0.00035,10]
[312298560,1705762240970,-151.0,0.00035,2]
[312298561,1705762240979,-201.67735052,0.00035,2]
[312298562,1705762240989,-151.0,0.00035,2]
[312298563,1705762240998,-171.0,0.00035,2]
[312298564,1705762241007,-62007.26280374,0.00035,7]
[312298565,1705762241020,-994.81423819,0.00035,7]
[312298651,1705763226095,-170.091916,0.00019178,2]
[312298652,1705763226116,-616.15976079,0.00020038,2]
[312298653,1705763250087,-155.96557472,0.00019499,2]
[312298654,1705763250109,-154.73694719,0.00019499,3]
[312298655,1705763250131,-1114.14548175,0.000195,2]
[312298656,1705763250151,-261.05411193,0.00020036,2]
[312298657,1705763250171,-226.11932729,0.00020037,2]
[312298703,1705763433758,-160.83305456,0.00019931,2]
[312298704,1705763433767,-2001.92927764,0.00019974,2]
[312298705,1705763433776,-20895.55414875,0.00019975,2]
[312298706,1705763433786,-24900.0,0.00019976,2]
[312298707,1705763433796,-620.47380229,0.00020037,2]
[312298708,1705763433805,-10297.45913414,0.00020037,2]
[312298709,1705763433814,-198.345251,0.00020043,2]
[312298710,1705763433824,-8001.61067914,0.00020968,2]
[312298711,1705763433834,-2585.16227083,0.00020969,2]
[312298712,1705763433843,-1764.32790583,0.00021,2]
[312298713,1705763433852,-185.3441265,0.00021195,2]
[312298714,1705763433862,-165.90071,0.00021355,2]
[312298715,1705763433871,-166.666666,0.00021918,2]
[312298716,1705763433880,-200.0,0.00022044,7]
[312298717,1705763433889,-166.666666,0.00022431,2]
[312298718,1705763433898,-166.666666,0.00022944,2]
[312298719,1705763433907,-166.666666,0.00023456,2]
[312298720,1705763433916,-154.73694719,0.00023968,4]
[312298721,1705763433926,-166.666666,0.00023969,2]
[312298722,1705763433934,-1114.14548175,0.00024247,2]
[312298723,1705763433943,-280.0,0.00024248,7]
[312298724,1705763433952,-166.666666,0.00024482,2]
[312298725,1705763433961,-155.96557472,0.00026672,2]
[312298726,1705763433970,-391.0,0.00026673,15]
[312298727,1705763433979,-153.05766386,0.00028699,2]
[312298728,1705763433988,-158.00349204,0.00028709,2]
[312298729,1705763433998,-155.26150562,0.00028709,2]
[312298730,1705763434006,-265.2811879,0.00028709,2]
[312298731,1705763434015,-12423.32320365,0.0002871,2]
[312298732,1705763434025,-1572.6298374,0.00028711,5]
[312298741,1705763438110,-1578.85296989,0.00019973,2]
[312298742,1705763438123,-8623.99655299,0.00028701,3]
[312298743,1705763438140,-7564.85344701,0.00028701,3]
[312298744,1705763438153,-69000.49894105,0.00028711,5]
[312298745,1705763438166,-5000.0,0.00028711,5]
[312298746,1705763438176,-1916.14814621,0.00028711,4]
[312298747,1705763438187,-10765.07065491,0.00028749,2]
[312298748,1705763438201,-161.237556,0.00028767,2]
[312298749,1705763438213,-159.517034,0.00028767,2]
[312298750,1705763438226,-470.52459336,0.00028798,2]
[312298751,1705763438238,-166.55500108,0.00028798,2]
[312298752,1705763438250,-154.73694719,0.00028798,2]
[312298753,1705763438263,-200.83649034,0.00028798,2]
[312298754,1705763438275,-260.69048069,0.00028798,2]
[312298755,1705763438289,-1370.37497659,0.00028798,2]
[312298756,1705763438304,-615.9,0.00028799,2]
[312298757,1705763438318,-615.9,0.00028799,2]
[312298758,1705763438332,-500.0,0.00028799,2]
[312298759,1705763438344,-500.0,0.00028799,2]
[312298760,1705763438355,-500.0,0.00028799,2]
[312298761,1705763438369,-439.31016,0.00028799,2]
[312298762,1705763438381,-500.0,0.00028799,2]
[312298763,1705763438394,-500.0,0.00028799,2]
[312298764,1705763438406,-500.0,0.00028799,2]
[312298765,1705763438418,-626.31077225,0.00028799,2]
[312298766,1705763438429,-500.0,0.00028799,2]
[312298767,1705763438439,-500.0,0.00028799,2]
[312298768,1705763438450,-376.20040771,0.00028799,2]
[312298769,1705763438461,-300.0,0.00028799,2]
[312298770,1705763438473,-251.92683009,0.00028799,2]
[312298771,1705763438484,-500.0,0.00028799,2]
[312298772,1705763438495,-500.0,0.00028799,2]
[312298773,1705763438506,-500.0,0.00028799,2]
[312298774,1705763438517,-500.0,0.00028799,2]
[312298775,1705763438528,-500.0,0.00028799,2]
[312298776,1705763438540,-500.0,0.00028799,2]
[312298777,1705763438551,-500.0,0.00028799,2]
[312298778,1705763438563,-406.76195901,0.00028799,2]
[312298779,1705763438574,-500.0,0.00028799,2]
[312298780,1705763438585,-500.0,0.00028799,2]
[312298781,1705763438596,-500.0,0.00028799,2]
[312298782,1705763438607,-500.0,0.00028799,2]
[312298783,1705763438621,-500.0,0.00028799,2]
[312298784,1705763438632,-500.0,0.00028799,2]
[312298785,1705763438643,-500.0,0.00028799,2]
[312298786,1705763438655,-500.0,0.00028799,2]
[312298787,1705763438666,-500.0,0.00028799,2]
[312298788,1705763438677,-500.0,0.00028799,2]
[312298789,1705763438689,-344.38239767,0.00028799,2]
[312298790,1705763438700,-175.72406399,0.00028799,2]
[312298791,1705763438712,-500.0,0.00028799,2]
[312298792,1705763438723,-500.0,0.00028799,2]
[312298793,1705763438735,-500.0,0.00028799,2]
[312298794,1705763438750,-500.0,0.00028799,2]
[312298795,1705763438761,-206.76195901,0.00028799,2]
[312298796,1705763438772,-500.0,0.00028799,2]
[312298797,1705763438783,-500.0,0.00028799,2]
[312298798,1705763438794,-515.76898668,0.00028799,2]
[312298799,1705763438805,-380.52395719,0.00028799,2]
[312298800,1705763438816,-500.0,0.00028799,2]
[312298801,1705763438826,-500.0,0.00028799,2]
[312298802,1705763438838,-500.0,0.00028799,2]
[312298803,1705763438849,-500.0,0.00028799,2]
[312298804,1705763438860,-500.0,0.00028799,2]
[312298805,1705763438872,-500.0,0.00028799,2]
[312298806,1705763438882,-500.0,0.00028799,2]
[312298807,1705763438893,-500.0,0.00028799,2]
[312298808,1705763438904,-500.0,0.00028799,2]
[312298809,1705763438917,-500.0,0.00028799,2]
[312298810,1705763438928,-312.98170752,0.00028799,2]
[312298811,1705763438939,-500.0,0.00028799,2]
[312298812,1705763438951,-500.0,0.00028799,2]
[312298813,1705763438962,-500.0,0.00028799,2]
[312298814,1705763438975,-500.0,0.00028799,2]
[312298815,1705763438985,-500.0,0.00028799,2]
[312298816,1705763438996,-500.0,0.00028799,2]
[312298817,1705763439007,-500.0,0.00028799,2]
[312298818,1705763439019,-200.0,0.00028799,2]
[312298819,1705763439031,-102491.42926861,0.000288,2]
[312298820,1705763439042,-200.0,0.00029341,15]
[312298821,1705763439054,-348.0,0.00029341,15]
[312298822,1705763439065,-615.9,0.00029999,2]
[312298823,1705763439076,-368.36777862,0.0003,3]
[312298824,1705763439088,-27897.38552471,0.0003,2]
[312298825,1705763439098,-22165.86370198,0.0003,2]
[312298826,1705763439110,-30497.95907604,0.0003,3]
[312298827,1705763439121,-2104.48868232,0.0003,4]
[312298828,1705763439132,-18589.14989047,0.0003,2]
[312298829,1705763439142,-699.95088598,0.0003,2]
[312298830,1705763439152,-155.3990448,0.0003,2]
[312298831,1705763439161,-198.345251,0.00030065,2]
[312298832,1705763439170,-194.65258787,0.00030137,7]
[312298833,1705763439180,-247.53351132,0.000305,2]
[312298834,1705763439349,-150.5,0.00030969,30]
[312298835,1705763439367,-185.0,0.00030979,30]
[312298836,1705763439377,-150.5,0.00030979,30]
[312298837,1705763439386,-150.5,0.00030989,30]
[312298838,1705763439395,-150.5,0.00030989,30]
[312298839,1705763439403,-615.9,0.00030999,2]
[312298840,1705763439412,-2846.05665284,0.00031,2]
[312298841,1705763439422,-165964.08569831,0.00031,2]
[312298842,1705763439431,-238.14143998,0.00031,4]
[312298843,1705763439440,-1371.71817528,0.00031167,2]
[312298844,1705763439449,-1033.14552986,0.00031167,2]
[312298845,1705763439458,-183.76847822,0.00031167,2]
[312298846,1705763439467,-208.92431779,0.00031167,2]
[312298847,1705763439476,-459.6650466,0.00031167,2]
[312298848,1705763439485,-189.98376832,0.00031167,2]
[312298849,1705763439494,-154.73694719,0.000315,2]
[312298850,1705763439502,-161.237556,0.00031849,2]
[312298851,1705763439511,-3125.40645245,0.00031989,4]
[312298852,1705763439521,-16783.90801329,0.0003199,7]
[312298853,1705763439530,-36939.26517678,0.00031997,4]
[312298854,1705763439539,-203.86620558,0.00031997,2]
[312298855,1705763439548,-547.75148392,0.00031997,4]
[312298856,1705763439557,-394.97829414,0.00031997,4]
[312298857,1705763439567,-500.0,0.00031997,4]
[312298858,1705763439576,-500.0,0.00031997,4]
[312298859,1705763439585,-500.0,0.00031997,4]
[312298860,1705763439594,-405.86524898,0.00031997,4]
[312298861,1705763439603,-500.0,0.00031997,4]
[312298862,1705763439613,-587.72145092,0.00031997,4]
[312298863,1705763439622,-7146.21757855,0.00031998,4]
[312298864,1705763439630,-583.04756545,0.00031998,4]
[312298865,1705763439639,-2746.17143559,0.00031998,3]
[312298866,1705763439648,-678.60233026,0.00031998,4]
[312298867,1705763439657,-411.75268187,0.00031998,4]
[312298868,1705763439666,-2033.10997564,0.00031998,4]
[312298869,1705763439675,-902.97118459,0.00031998,4]
[312298870,1705763439684,-1765.96726807,0.00031998,4]
[312298871,1705763439693,-15903.84683037,0.00031998,4]
[312298872,1705763439702,-301.45322004,0.00031998,4]
[312298873,1705763439712,-1579.57276969,0.00031998,4]
[312298874,1705763439721,-1424.32228167,0.00031998,120]
[312298875,1705763439730,-200.0,0.00031998,4]
[312298876,1705763439739,-162.61777834,0.00031998,4]
[312298877,1705763439749,-587.69337227,0.00031998,4]
[312298878,1705763439762,-175.10808693,0.00031998,4]
[312298879,1705763439771,-253.93572922,0.00031998,4]
[312298880,1705763439780,-15458.94796053,0.00031998,4]
[312298881,1705763439789,-345.29571752,0.00031998,2]
[312298882,1705763439800,-1990.72583071,0.00031998,4]
[312298883,1705763439809,-678.35754423,0.00031998,4]
[312298884,1705763439818,-604.51557286,0.00031998,4]
[312298885,1705763439828,-368.18356328,0.00031999,4]
[312298886,1705763439837,-342242.23999023,0.00032,4]
[312298887,1705763439847,-154.73694719,0.00032,4]
[312298888,1705763439856,-1499.999999,0.00032,2]
[312298889,1705763439867,-200.0,0.00032275,15]
[312298890,1705763439876,-200.0,0.00032275,15]
[312298891,1705763439885,-232.0,0.00032275,15]
[312298892,1705763439894,-1094.47895322,0.000325,20]
[312298893,1705763439903,-154.98450155,0.00032876,4]
[312298894,1705763439912,-1200.0,0.00032876,4]
[312298895,1705763439922,-4463.10901165,0.00032876,4]
[312298896,1705763439931,-500.0,0.00032876,7]
[312298897,1705763439940,-500.0,0.00032876,7]
[312298898,1705763439949,-500.0,0.00032876,7]
[312298899,1705763439958,-500.0,0.00032876,7]
[312298900,1705763439967,-263.586096,0.00032876,7]
[312298901,1705763439976,-350.0,0.00032876,7]
[312298902,1705763439985,-500.0,0.00032876,7]
[312298903,1705763439994,-594.73307919,0.00032876,7]
[312298904,1705763440003,-500.0,0.00032876,7]
[312298905,1705763440012,-188.94512257,0.00032876,7]
[312298906,1705763440021,-500.0,0.00032876,7]
[312298907,1705763440030,-500.0,0.00032876,7]
[312298908,1705763440039,-500.0,0.00032876,7]
[312298909,1705763440049,-500.0,0.00032876,7]
[312298910,1705763440059,-500.0,0.00032876,7]
[312298911,1705763440068,-500.0,0.00032876,7]
[312298912,1705763440077,-157.15030578,0.00032876,7]
[312298913,1705763440086,-305.07146926,0.00032876,7]
[312298914,1705763440095,-500.0,0.00032876,7]
[312298915,1705763440104,-500.0,0.00032876,7]
[312298916,1705763440115,-500.0,0.00032876,7]
[312298917,1705763440123,-500.0,0.00032876,7]
[312298918,1705763440132,-500.0,0.00032876,7]
[312298919,1705763440141,-508.28679825,0.00032876,7]
[312298920,1705763440151,-500.0,0.00032876,7]
[312298921,1705763440160,-405.07146926,0.00032876,7]
[312298922,1705763440169,-500.0,0.00032876,7]
[312298923,1705763440178,-500.0,0.00032876,7]
[312298924,1705763440187,-500.0,0.00032876,7]
[312298925,1705763440196,-500.0,0.00032876,7]
[312298927,1705763440205,-221.04385144,0.00032876,7]
[312298928,1705763440214,-500.0,0.00032876,7]
[312298930,1705763440223,-500.0,0.00032876,7]
[312298932,1705763440233,-500.0,0.00032876,7]
[312298933,1705763440242,-500.0,0.00032876,7]
[312298934,1705763440251,-500.0,0.00032876,7]
[312298935,1705763440259,-500.0,0.00032876,7]
[312298936,1705763440268,-500.0,0.00032876,7]
[312298937,1705763440277,-234.73628064,0.00032876,7]
[312298938,1705763440286,-500.0,0.00032876,7]
[312298939,1705763440296,-410.39296789,0.00032876,7]
[312298940,1705763440305,-500.0,0.00032876,7]
[312298941,1705763440315,-500.0,0.00032876,7]
[312298942,1705763440324,-500.0,0.00032876,7]
[312298943,1705763440334,-500.0,0.00032876,7]
[312298944,1705763440343,-400.0,0.00032876,7]
[312298945,1705763440352,-250.0,0.00032876,7]
[312298946,1705763440362,-3454.75924448,0.00033,4]
[312298947,1705763440371,-154.73694719,0.00033,4]
[312298948,1705763440381,-12249.29617136,0.0003325,5]
[312298949,1705763440390,-620.00185417,0.00033856,2]
[312298951,1705763440399,-171.79662836,0.00034,7]
[312298952,1705763440408,-10990.39266955,0.00034,2]
[312298953,1705763440417,-1500.0,0.00034,2]
[312298954,1705763440427,-4036.97934018,0.0003412,7]
[312298955,1705763440435,-151.0,0.00034182,2]
[312298956,1705763440444,-5000.0,0.00034244,2]
[312298957,1705763440454,-500.0,0.00034246,7]
[312298958,1705763440463,-161.237556,0.00034932,2]
[312298959,1705763440472,-500.0,0.00034963,7]
[312298960,1705763440481,-169.27641177,0.00034963,7]
[312298961,1705763440490,-173.94224956,0.00034963,7]
[312298962,1705763440499,-500.0,0.00034963,7]
[312298963,1705763440509,-328.65089035,0.00034963,7]
[312298964,1705763440517,-500.0,0.00034963,7]
[312298965,1705763440526,-440.79108819,0.00034963,7]
[312298966,1705763440536,-50000.0,0.00034964,7]
[312298967,1705763440546,-151.0,0.00034964,2]
[312298968,1705763440556,-151.0,0.00034964,2]
[312298969,1705763440565,-151.0,0.00034964,2]
[312298970,1705763440574,-4484.734686,0.00034964,2]
[312298971,1705763440583,-4484.734686,0.00034964,2]
[312298972,1705763440593,-743.336361,0.00034964,2]
[312298973,1705763440602,-743.336361,0.00034964,2]
[312298974,1705763440613,-1273.92331985,0.0003499,2]
[312298975,1705763440622,-327.1291451,0.00034998,4]
[312298976,1705763440632,-267.47874117,0.00034999,4]
[312298977,1705763440641,-877.77514512,0.00034999,4]
[312298978,1705763440650,-2099.90637387,0.00034999,4]
[312298979,1705763440660,-333.12649891,0.00035,4]
[312298980,1705763440669,-3119.96924767,0.00035,20]
[312298981,1705763440679,-342.87850745,0.00035,4]
[312298982,1705763440688,-980.8946807,0.00035,4]
[312298983,1705763440697,-151970.62713994,0.00035,30]
[312298984,1705763440706,-425.21360235,0.00035,2]
[312298985,1705763440715,-763.70587335,0.00035,2]
[312298986,1705763440725,-283.12887752,0.00035,3]
[312298987,1705763440734,-790.06131023,0.00035,4]
[312298988,1705763440744,-154.73694719,0.00035,6]
[312298989,1705763440755,-548.14664073,0.00035,7]
[312298990,1705763440764,-3000.0,0.00035,5]
[312298991,1705763440773,-3000.0,0.00035,5]
[312298992,1705763440782,-3000.0,0.00035,5]
[312298993,1705763440791,-1438.870422,0.00035,5]
[312298994,1705763440802,-151.0,0.00035,2]
[312298995,1705763440811,-151.0,0.00035,2]
[312298996,1705763440821,-151.0,0.00035,2]
[312298997,1705763440830,-154.95351395,0.00035,2]
[312298998,1705763440840,-1500.0,0.00035,2]
[312298999,1705763440850,-4484.734686,0.00035,2]
[312299000,1705763440859,-4484.734686,0.00035,2]